[Event "Titled Tuesday Blitz November 2 2021"]
[White "Budrewicz, Krzysztof"]
[Black "Rychagov, Andrey"]
[WhiteFideId "1127950"]
[BlackFideId "4119932"]
[WhiteElo "2242"]
[BlackElo "2500"]
[Result "0-1"]
[Round "10"]
[TimeControl "180+1"]
[Date "2021.11.02"]
[WhiteClock "0:00:19"]
[BlackClock "0:00:46"]

1. d4 {[%clk 0:03:00]}  f5 {[%clk 0:02:57]} 2. h3 {[%clk 0:02:58]}  d5 {[%clk 0:02:56]} 3. Nf3 {[%clk 0:02:57]}  Nf6 {[%clk 0:02:56]} 4. Bf4 {[%clk 0:02:57]}  e6 {[%clk 0:02:56]} 5. e3 {[%clk 0:02:57]}  Bd6 {[%clk 0:02:56]} 6. Nbd2 {[%clk 0:02:57]}  Nbd7 {[%clk 0:02:55]} 7. Bd3 {[%clk 0:02:56]}  Qe7 {[%clk 0:02:55]} 8. O-O {[%clk 0:02:56]}  O-O {[%clk 0:02:54]} 9. Ne5 {[%clk 0:02:55]}  Ne4 {[%clk 0:02:53]} 10. c4 {[%clk 0:02:44]}  Nxd2 {[%clk 0:02:25]} 11. Qxd2 {[%clk 0:02:44]}  Bxe5 {[%clk 0:02:25]} 12. dxe5 {[%clk 0:02:44]}  Nb6 {[%clk 0:02:23]} 13. b3 {[%clk 0:02:38]}  Bd7 {[%clk 0:02:21]} 14. Rac1 {[%clk 0:02:36]}  dxc4 {[%clk 0:02:20]} 15. bxc4 {[%clk 0:02:33]}  Bc6 {[%clk 0:02:20]} 16. Qc2 {[%clk 0:02:24]}  Rad8 {[%clk 0:02:16]} 17. Be2 {[%clk 0:02:24]}  Qf7 {[%clk 0:02:07]} 18. Rb1 {[%clk 0:02:15]}  Rd7 {[%clk 0:02:05]} 19. Qc3 {[%clk 0:02:07]}  Rfd8 {[%clk 0:02:02]} 20. Bg5 {[%clk 0:02:05]}  Re8 {[%clk 0:02:01]} 21. Rfd1 {[%clk 0:02:03]}  Qg6 {[%clk 0:01:53]} 22. Rxd7 {[%clk 0:01:40]}  Nxd7 {[%clk 0:01:53]} 23. f4 {[%clk 0:01:30]}  h6 {[%clk 0:01:52]} 24. h4 {[%clk 0:01:30]}  hxg5 {[%clk 0:01:52]} 25. hxg5 {[%clk 0:01:31]}  Nc5 {[%clk 0:01:47]} 26. Qa5 {[%clk 0:01:19]}  Ne4 {[%clk 0:01:46]} 27. Qxc7 {[%clk 0:01:19]}  Qf7 {[%clk 0:01:47]} 28. Qa5 {[%clk 0:01:16]}  a6 {[%clk 0:01:46]} 29. Rd1 {[%clk 0:01:14]}  Qe7 {[%clk 0:01:43]} 30. Rd3 {[%clk 0:01:00]}  Qc5 {[%clk 0:01:35]} 31. Qc7 {[%clk 0:00:57]}  Qe7 {[%clk 0:01:23]} 32. Qa5 {[%clk 0:00:54]}  Nxg5 {[%clk 0:01:17]} 33. fxg5 {[%clk 0:00:51]}  Qxg5 {[%clk 0:01:17]} 34. Bf1 {[%clk 0:00:51]}  Be4 {[%clk 0:01:17]} 35. Rb3 {[%clk 0:00:35]}  Rd8 {[%clk 0:01:16]} 36. Qe1 {[%clk 0:00:34]}  Qg4 {[%clk 0:00:53]} 37. Rb2 {[%clk 0:00:29]}  Rd1 {[%clk 0:00:49]} 38. Qe2 {[%clk 0:00:21]}  Qxe2 {[%clk 0:00:49]} 39. Rxe2 {[%clk 0:00:21]}  Bd3 {[%clk 0:00:49]} 40. Rf2 {[%clk 0:00:21]}  Bxc4 {[%clk 0:00:49]} 41. a3 {[%clk 0:00:19]}  b5 {[%clk 0:00:48]} 42. g3 {[%clk 0:00:19]}  a5 {[%clk 0:00:48]} 43. Kg2 {[%clk 0:00:19]}  Rxf1 {[%clk 0:00:47]} 44. Rxf1 {[%clk 0:00:20]}  Bxf1+ {[%clk 0:00:48]} 45. Kxf1 {[%clk 0:00:21]}  b4 {[%clk 0:00:45]} 46. axb4 {[%clk 0:00:21]}  a4 {[%clk 0:00:45]} 47. b5 {[%clk 0:00:17]}  a3 {[%clk 0:00:45]} 48. b6 {[%clk 0:00:17]}  a2 {[%clk 0:00:46]} 49. b7 {[%clk 0:00:18]}  a1=Q+ {[%clk 0:00:46]} 50. Kg2 {[%clk 0:00:19]}  Qb2+ {[%clk 0:00:46]} 0-1


[Site "https://www.chess.com"]

[Event "Titled Tuesday Blitz November 2 2021"]
[White "Holt, Conrad"]
[Black "Nozdrachev, Leonid"]
[WhiteFideId "2034387"]
[BlackFideId "24113433"]
[WhiteElo "2586"]
[BlackElo "2124"]
[Result "1-0"]
[Round "10"]
[TimeControl "180+1"]
[Date "2021.11.02"]
[WhiteClock "0:01:34"]
[BlackClock "0:00:52"]

1. d4 {[%clk 0:03:00]}  Nf6 {[%clk 0:02:58]} 2. c4 {[%clk 0:03:01]}  e6 {[%clk 0:02:58]} 3. Nc3 {[%clk 0:03:01]}  Bb4 {[%clk 0:02:58]} 4. Qc2 {[%clk 0:03:02]}  O-O {[%clk 0:02:58]} 5. a3 {[%clk 0:03:00]}  Bxc3+ {[%clk 0:02:58]} 6. Qxc3 {[%clk 0:02:59]}  b5 {[%clk 0:02:59]} 7. cxb5 {[%clk 0:02:58]}  c6 {[%clk 0:03:00]} 8. e3 {[%clk 0:02:59]}  cxb5 {[%clk 0:02:52]} 9. Bxb5 {[%clk 0:02:59]}  Ne4 {[%clk 0:02:44]} 10. Qd3 {[%clk 0:02:58]}  Nd6 {[%clk 0:02:28]} 11. Bd2 {[%clk 0:02:53]}  Nxb5 {[%clk 0:02:25]} 12. Qxb5 {[%clk 0:02:53]}  Ba6 {[%clk 0:02:25]} 13. Qa5 {[%clk 0:02:51]}  Qh4 {[%clk 0:02:16]} 14. Nf3 {[%clk 0:02:48]}  Qe4 {[%clk 0:02:08]} 15. Qa4 {[%clk 0:02:30]}  Qg4 {[%clk 0:01:49]} 16. Rg1 {[%clk 0:02:06]}  Rc8 {[%clk 0:01:39]} 17. Bc3 {[%clk 0:02:00]}  Qf5 {[%clk 0:01:24]} 18. O-O-O {[%clk 0:01:46]}  Bd3 {[%clk 0:01:14]} 19. d5 {[%clk 0:01:36]}  exd5 {[%clk 0:00:52]} 20. Qd4 {[%clk 0:01:34]} 1-0


[Site "https://www.chess.com"]

[Event "Titled Tuesday Blitz November 2 2021"]
[White "Jobava, Baadur"]
[Black "Djordjevic, Vuk"]
[WhiteFideId "13601520"]
[BlackFideId "902098"]
[WhiteElo "2731"]
[BlackElo "2463"]
[Result "1-0"]
[Round "10"]
[TimeControl "180+1"]
[Date "2021.11.02"]
[WhiteClock "0:00:24"]
[BlackClock "0:00:03"]

1. e4 {[%clk 0:02:30]}  e6 {[%clk 0:02:57]} 2. Qe2 {[%clk 0:02:29]}  c5 {[%clk 0:02:56]} 3. c4 {[%clk 0:02:28]}  Nc6 {[%clk 0:02:55]} 4. Nf3 {[%clk 0:02:28]}  g6 {[%clk 0:02:52]} 5. Nc3 {[%clk 0:02:28]}  Bg7 {[%clk 0:02:51]} 6. h4 {[%clk 0:02:29]}  h6 {[%clk 0:02:49]} 7. e5 {[%clk 0:02:27]}  Nge7 {[%clk 0:02:45]} 8. Nb5 {[%clk 0:02:26]}  O-O {[%clk 0:02:45]} 9. h5 {[%clk 0:02:25]}  g5 {[%clk 0:02:44]} 10. d4 {[%clk 0:02:24]}  cxd4 {[%clk 0:02:41]} 11. Bxg5 {[%clk 0:02:24]}  hxg5 {[%clk 0:02:22]} 12. h6 {[%clk 0:02:25]}  Ng6 {[%clk 0:01:52]} 13. hxg7 {[%clk 0:02:21]}  Kxg7 {[%clk 0:01:53]} 14. O-O-O {[%clk 0:02:17]}  g4 {[%clk 0:01:49]} 15. Qd2 {[%clk 0:02:00]}  Rh8 {[%clk 0:01:47]} 16. Rxh8 {[%clk 0:02:00]}  Qxh8 {[%clk 0:01:48]} 17. Nfxd4 {[%clk 0:01:55]}  Ncxe5 {[%clk 0:01:23]} 18. Qc3 {[%clk 0:01:52]}  d5 {[%clk 0:00:53]} 19. Kb1 {[%clk 0:01:28]}  dxc4 {[%clk 0:00:41]} 20. Bxc4 {[%clk 0:01:19]}  Bd7 {[%clk 0:00:32]} 21. Nd6 {[%clk 0:01:14]}  Qh2 {[%clk 0:00:31]} 22. f3 {[%clk 0:00:51]}  Kg8 {[%clk 0:00:20]} 23. Ne4 {[%clk 0:00:48]}  Qh4 {[%clk 0:00:12]} 24. f4 {[%clk 0:00:44]}  Nxc4 {[%clk 0:00:07]} 25. g3 {[%clk 0:00:38]}  Qe7 {[%clk 0:00:06]} 26. Qxc4 {[%clk 0:00:37]}  Rc8 {[%clk 0:00:06]} 27. Qe2 {[%clk 0:00:32]}  Bc6 {[%clk 0:00:06]} 28. Nxc6 {[%clk 0:00:26]}  bxc6 {[%clk 0:00:06]} 29. Qxg4 {[%clk 0:00:27]}  Rd8 {[%clk 0:00:05]} 30. Rh1 {[%clk 0:00:25]}  Qb4 {[%clk 0:00:04]} 31. f5 {[%clk 0:00:24]}  exf5 {[%clk 0:00:03]} 32. Nf6+ {[%clk 0:00:24]} 1-0


[Site "https://www.chess.com"]

[Event "Titled Tuesday Blitz November 2 2021"]
[White "Kaasen, Tor Fredrik"]
[Black "Gubajdullin, Alexei"]
[WhiteFideId "1516647"]
[BlackFideId "4141202"]
[WhiteElo "2349"]
[BlackElo "2268"]
[Result "1-0"]
[Round "10"]
[TimeControl "180+1"]
[Date "2021.11.02"]
[WhiteClock "0:00:38"]
[BlackClock "0:00:05"]

1. e4 {[%clk 0:03:00]}  d6 {[%clk 0:02:58]} 2. d4 {[%clk 0:03:00]}  g6 {[%clk 0:02:57]} 3. Nc3 {[%clk 0:02:57]}  Bg7 {[%clk 0:02:58]} 4. Be3 {[%clk 0:02:58]}  c6 {[%clk 0:02:56]} 5. Nf3 {[%clk 0:02:55]}  b5 {[%clk 0:02:55]} 6. Bd3 {[%clk 0:02:56]}  Nd7 {[%clk 0:02:54]} 7. O-O {[%clk 0:02:56]}  Nb6 {[%clk 0:02:38]} 8. Re1 {[%clk 0:02:41]}  Nf6 {[%clk 0:02:24]} 9. a4 {[%clk 0:02:38]}  b4 {[%clk 0:02:23]} 10. Ne2 {[%clk 0:02:39]}  a5 {[%clk 0:02:21]} 11. c3 {[%clk 0:02:37]}  b3 {[%clk 0:02:19]} 12. Qxb3 {[%clk 0:02:34]}  Rb8 {[%clk 0:02:18]} 13. Qc2 {[%clk 0:02:34]}  O-O {[%clk 0:02:13]} 14. h3 {[%clk 0:02:33]}  Nfd7 {[%clk 0:02:12]} 15. Rad1 {[%clk 0:02:31]}  Qc7 {[%clk 0:02:10]} 16. b3 {[%clk 0:02:27]}  c5 {[%clk 0:02:10]} 17. Bb5 {[%clk 0:02:23]}  cxd4 {[%clk 0:02:05]} 18. Bxd4 {[%clk 0:02:24]}  e5 {[%clk 0:02:00]} 19. Be3 {[%clk 0:02:21]}  Nc5 {[%clk 0:01:59]} 20. c4 {[%clk 0:02:05]}  f5 {[%clk 0:01:51]} 21. Nc3 {[%clk 0:02:05]}  Bb7 {[%clk 0:01:23]} 22. Ng5 {[%clk 0:01:59]}  Qe7 {[%clk 0:01:12]} 23. Nd5 {[%clk 0:01:49]}  Nxd5 {[%clk 0:01:08]} 24. cxd5 {[%clk 0:01:50]}  Bf6 {[%clk 0:00:58]} 25. Bxc5 {[%clk 0:01:41]}  Bxg5 {[%clk 0:00:58]} 26. Be3 {[%clk 0:01:32]}  f4 {[%clk 0:00:57]} 27. Bc1 {[%clk 0:01:29]}  f3 {[%clk 0:00:56]} 28. g3 {[%clk 0:01:25]}  Bc8 {[%clk 0:00:55]} 29. Kh2 {[%clk 0:01:21]}  h5 {[%clk 0:00:50]} 30. Bxg5 {[%clk 0:01:19]}  Qxg5 {[%clk 0:00:49]} 31. Qc7 {[%clk 0:01:16]}  h4 {[%clk 0:00:35]} 32. Rg1 {[%clk 0:01:07]}  Rb7 {[%clk 0:00:31]} 33. Qxd6 {[%clk 0:01:04]}  Rh7 {[%clk 0:00:27]} 34. gxh4 {[%clk 0:01:01]}  Qf4+ {[%clk 0:00:21]} 35. Rg3 {[%clk 0:01:01]}  g5 {[%clk 0:00:17]} 36. Qg6+ {[%clk 0:00:51]}  Kh8 {[%clk 0:00:16]} 37. Qxg5 {[%clk 0:00:49]}  Qf7 {[%clk 0:00:13]} 38. Qxe5+ {[%clk 0:00:47]}  Qf6 {[%clk 0:00:12]} 39. Qxf6+ {[%clk 0:00:47]}  Rxf6 {[%clk 0:00:12]} 40. d6 {[%clk 0:00:48]}  Bd7 {[%clk 0:00:10]} 41. e5 {[%clk 0:00:47]}  Re6 {[%clk 0:00:09]} 42. Bc4 {[%clk 0:00:47]}  Re8 {[%clk 0:00:09]} 43. Rdg1 {[%clk 0:00:47]}  Rh5 {[%clk 0:00:08]} 44. Rg8+ {[%clk 0:00:45]}  Rxg8 {[%clk 0:00:08]} 45. Rxg8+ {[%clk 0:00:46]}  Kh7 {[%clk 0:00:09]} 46. Rd8 {[%clk 0:00:43]}  Bc6 {[%clk 0:00:06]} 47. e6 {[%clk 0:00:41]}  Rh6 {[%clk 0:00:05]} 48. e7 {[%clk 0:00:38]}  Rg6 {[%clk 0:00:05]} 49. Bd3 {[%clk 0:00:38]} 1-0


[Site "https://www.chess.com"]

[Event "Titled Tuesday Blitz November 2 2021"]
[White "Lazavik, Denis"]
[Black "Khoroshev, Nikita"]
[WhiteFideId "13515110"]
[BlackFideId "14200287"]
[WhiteElo "2436"]
[BlackElo "2376"]
[Result "1/2-1/2"]
[Round "10"]
[TimeControl "180+1"]
[Date "2021.11.02"]
[WhiteClock "0:00:14"]
[BlackClock "0:00:12"]

1. d4 {[%clk 0:03:00]}  Nf6 {[%clk 0:02:59]} 2. c4 {[%clk 0:03:01]}  e6 {[%clk 0:02:59]} 3. Nf3 {[%clk 0:03:02]}  d5 {[%clk 0:02:59]} 4. Nc3 {[%clk 0:03:02]}  Bb4 {[%clk 0:03:00]} 5. Bg5 {[%clk 0:02:58]}  h6 {[%clk 0:02:58]} 6. Bxf6 {[%clk 0:02:58]}  Qxf6 {[%clk 0:02:59]} 7. e3 {[%clk 0:02:58]}  O-O {[%clk 0:02:56]} 8. Rc1 {[%clk 0:02:58]}  c6 {[%clk 0:02:47]} 9. Qb3 {[%clk 0:02:37]}  Bxc3+ {[%clk 0:02:45]} 10. Qxc3 {[%clk 0:02:38]}  Nd7 {[%clk 0:02:44]} 11. cxd5 {[%clk 0:02:26]}  exd5 {[%clk 0:02:41]} 12. Bd3 {[%clk 0:02:26]}  Re8 {[%clk 0:02:37]} 13. O-O {[%clk 0:02:25]}  Nf8 {[%clk 0:02:31]} 14. b4 {[%clk 0:02:25]}  Bf5 {[%clk 0:02:21]} 15. b5 {[%clk 0:02:24]}  Rac8 {[%clk 0:02:13]} 16. Bxf5 {[%clk 0:02:18]}  Qxf5 {[%clk 0:02:13]} 17. Qa5 {[%clk 0:02:15]}  Ne6 {[%clk 0:01:34]} 18. bxc6 {[%clk 0:02:08]}  bxc6 {[%clk 0:01:32]} 19. Qxa7 {[%clk 0:02:08]}  Ra8 {[%clk 0:01:29]} 20. Qb6 {[%clk 0:02:06]}  Rxa2 {[%clk 0:01:25]} 21. Qxc6 {[%clk 0:02:06]}  Rf8 {[%clk 0:01:20]} 22. Ne5 {[%clk 0:02:04]}  Qe4 {[%clk 0:01:15]} 23. Ra1 {[%clk 0:01:53]}  Rc2 {[%clk 0:00:58]} 24. Qd6 {[%clk 0:01:50]}  Ng5 {[%clk 0:00:53]} 25. Nc6 {[%clk 0:01:34]}  Re8 {[%clk 0:00:33]} 26. Ra7 {[%clk 0:01:23]}  Re6 {[%clk 0:00:27]} 27. Ne7+ {[%clk 0:01:15]}  Kh7 {[%clk 0:00:22]} 28. Qd8 {[%clk 0:01:10]}  Nh3+ {[%clk 0:00:10]} 29. gxh3 {[%clk 0:01:08]}  Rg6+ {[%clk 0:00:10]} 30. Nxg6 {[%clk 0:01:08]}  Qxg6+ {[%clk 0:00:11]} 31. Kh1 {[%clk 0:01:08]}  Qe4+ {[%clk 0:00:11]} 32. Kg1 {[%clk 0:00:20]}  Qg6+ {[%clk 0:00:11]} 33. Kh1 {[%clk 0:00:21]}  Qe4+ {[%clk 0:00:11]} 34. Kg1 {[%clk 0:00:14]}  Qg6+ {[%clk 0:00:12]} 1/2-1/2


[Site "https://www.chess.com"]

[Event "Titled Tuesday Blitz November 2 2021"]
[White "Narayanan, Srinath"]
[Black "Girinath, P.D.S."]
[WhiteFideId "5018420"]
[BlackFideId "5000572"]
[WhiteElo "2472"]
[BlackElo "2333"]
[Result "1-0"]
[Round "10"]
[TimeControl "180+1"]
[Date "2021.11.02"]
[WhiteClock "0:00:01"]
[BlackClock "0:00:02"]

1. d4 {[%clk 0:03:00]}  e6 {[%clk 0:02:58]} 2. c4 {[%clk 0:03:00]}  f5 {[%clk 0:02:58]} 3. g3 {[%clk 0:03:00]}  Nf6 {[%clk 0:02:58]} 4. Bg2 {[%clk 0:03:01]}  Be7 {[%clk 0:02:59]} 5. Nf3 {[%clk 0:03:01]}  O-O {[%clk 0:02:59]} 6. O-O {[%clk 0:03:01]}  a5 {[%clk 0:02:59]} 7. Nc3 {[%clk 0:03:01]}  d6 {[%clk 0:03:00]} 8. Qc2 {[%clk 0:02:59]}  Nc6 {[%clk 0:02:58]} 9. a3 {[%clk 0:02:56]}  e5 {[%clk 0:02:58]} 10. dxe5 {[%clk 0:02:55]}  dxe5 {[%clk 0:02:59]} 11. Rd1 {[%clk 0:02:55]}  Qe8 {[%clk 0:02:59]} 12. Nd5 {[%clk 0:02:56]}  Bd8 {[%clk 0:02:58]} 13. Bg5 {[%clk 0:02:53]}  Qf7 {[%clk 0:02:40]} 14. Bxf6 {[%clk 0:02:15]}  Bxf6 {[%clk 0:02:41]} 15. e3 {[%clk 0:02:16]}  Be6 {[%clk 0:02:26]} 16. Ne1 {[%clk 0:02:13]}  e4 {[%clk 0:02:21]} 17. Qb3 {[%clk 0:02:13]}  b6 {[%clk 0:02:12]} 18. f4 {[%clk 0:01:58]}  a4 {[%clk 0:02:05]} 19. Qc2 {[%clk 0:01:57]}  Rfd8 {[%clk 0:01:57]} 20. g4 {[%clk 0:01:47]}  g6 {[%clk 0:01:50]} 21. Nxf6+ {[%clk 0:01:40]}  Qxf6 {[%clk 0:01:50]} 22. g5 {[%clk 0:01:41]}  Qe7 {[%clk 0:01:47]} 23. Rxd8+ {[%clk 0:01:30]}  Rxd8 {[%clk 0:01:40]} 24. Qxa4 {[%clk 0:01:11]}  Qc5 {[%clk 0:01:38]} 25. Qb3 {[%clk 0:01:12]}  Na5 {[%clk 0:01:27]} 26. Qc3 {[%clk 0:01:09]}  Nxc4 {[%clk 0:01:17]} 27. Nc2 {[%clk 0:00:47]}  Rd3 {[%clk 0:01:02]} 28. Qf6 {[%clk 0:00:47]}  Bf7 {[%clk 0:01:01]} 29. b4 {[%clk 0:00:46]}  Qd5 {[%clk 0:00:54]} 30. Bf1 {[%clk 0:00:45]}  Rd1 {[%clk 0:00:22]} 31. Qc3 {[%clk 0:00:16]}  Rxa1 {[%clk 0:00:12]} 32. Nxa1 {[%clk 0:00:17]}  Nd2 {[%clk 0:00:12]} 33. Be2 {[%clk 0:00:14]}  Nf3+ {[%clk 0:00:09]} 34. Bxf3 {[%clk 0:00:14]}  exf3 {[%clk 0:00:10]} 35. Qe1 {[%clk 0:00:05]}  Qa2 {[%clk 0:00:08]} 36. Qf1 {[%clk 0:00:02]}  Bd5 {[%clk 0:00:05]} 37. Nc2 {[%clk 0:00:01]}  Qxc2 {[%clk 0:00:04]} 38. h4 {[%clk 0:00:02]}  Qd2 {[%clk 0:00:02]} 39. e4 {[%clk 0:00:01]} 1-0


[Site "https://www.chess.com"]

[Event "Titled Tuesday Blitz November 2 2021"]
[White "Naroditsky, Daniel"]
[Black "Nakamura, Hikaru"]
[WhiteFideId "2026961"]
[BlackFideId "2016192"]
[WhiteElo "2608"]
[BlackElo "2884"]
[Result "1/2-1/2"]
[Round "10"]
[TimeControl "180+1"]
[Date "2021.11.02"]
[WhiteClock "0:01:23"]
[BlackClock "0:01:29"]

1. e4 {[%clk 0:02:59]}  e5 {[%clk 0:03:00]} 2. Nf3 {[%clk 0:02:58]}  Nc6 {[%clk 0:03:00]} 3. Bb5 {[%clk 0:02:59]}  Nf6 {[%clk 0:03:00]} 4. O-O {[%clk 0:02:48]}  Nxe4 {[%clk 0:03:00]} 5. Re1 {[%clk 0:02:48]}  Nd6 {[%clk 0:03:00]} 6. Nxe5 {[%clk 0:02:48]}  Be7 {[%clk 0:03:00]} 7. Bf1 {[%clk 0:02:42]}  Nxe5 {[%clk 0:03:00]} 8. Rxe5 {[%clk 0:02:42]}  O-O {[%clk 0:03:01]} 9. Nc3 {[%clk 0:02:43]}  Ne8 {[%clk 0:03:01]} 10. d4 {[%clk 0:02:43]}  Bf6 {[%clk 0:02:57]} 11. Re1 {[%clk 0:02:43]}  d5 {[%clk 0:02:57]} 12. Bd3 {[%clk 0:02:44]}  c6 {[%clk 0:02:56]} 13. Bf4 {[%clk 0:02:41]}  g6 {[%clk 0:02:54]} 14. Ne2 {[%clk 0:02:27]}  Ng7 {[%clk 0:02:48]} 15. c3 {[%clk 0:02:27]}  Bf5 {[%clk 0:02:47]} 16. Bxf5 {[%clk 0:02:27]}  Nxf5 {[%clk 0:02:48]} 17. Ng3 {[%clk 0:02:27]}  Ng7 {[%clk 0:02:48]} 18. Qf3 {[%clk 0:02:23]}  Bg5 {[%clk 0:02:37]} 19. Bxg5 {[%clk 0:02:19]}  Qxg5 {[%clk 0:02:38]} 20. Re5 {[%clk 0:02:19]}  Qh4 {[%clk 0:02:37]} 21. Rae1 {[%clk 0:02:18]}  Rae8 {[%clk 0:02:37]} 22. Rxe8 {[%clk 0:02:15]}  Rxe8 {[%clk 0:02:37]} 23. Rxe8+ {[%clk 0:02:16]}  Nxe8 {[%clk 0:02:38]} 24. Qe3 {[%clk 0:02:16]}  Qd8 {[%clk 0:02:38]} 25. h4 {[%clk 0:02:14]}  h5 {[%clk 0:02:31]} 26. Ne2 {[%clk 0:02:06]}  Nd6 {[%clk 0:02:31]} 27. g3 {[%clk 0:01:59]}  Nc4 {[%clk 0:02:31]} 28. Qc1 {[%clk 0:01:59]}  Qa5 {[%clk 0:02:30]} 29. a3 {[%clk 0:01:29]}  Qb5 {[%clk 0:02:23]} 30. b4 {[%clk 0:01:30]}  Qa4 {[%clk 0:02:10]} 31. Nf4 {[%clk 0:01:30]}  Qxa3 {[%clk 0:02:06]} 32. Qe1 {[%clk 0:01:31]}  Qb2 {[%clk 0:01:35]} 33. Qe8+ {[%clk 0:01:29]}  Kg7 {[%clk 0:01:36]} 34. Ne6+ {[%clk 0:01:24]}  fxe6 {[%clk 0:01:36]} 35. Qe7+ {[%clk 0:01:23]}  Kg8 {[%clk 0:01:36]} 36. Qe8+ {[%clk 0:01:23]}  Kg7 {[%clk 0:01:36]} 37. Qe7+ {[%clk 0:01:23]}  Kg8 {[%clk 0:01:29]} 38. Qe8+ {[%clk 0:01:23]}  Kg7 {[%clk 0:01:29]} 1/2-1/2


[Site "https://www.chess.com"]

[Event "Titled Tuesday Blitz November 2 2021"]
[White "Nazaretyan, Tigran"]
[Black "Sychev, Klementy"]
[WhiteFideId "24162345"]
[BlackFideId "4114060"]
[WhiteElo "2187"]
[BlackElo "2615"]
[Result "0-1"]
[Round "10"]
[TimeControl "180+1"]
[Date "2021.11.02"]
[WhiteClock "0:00:03"]
[BlackClock "0:00:35"]

1. d4 {[%clk 0:02:56]}  Nc6 {[%clk 0:03:00]} 2. Nf3 {[%clk 0:02:54]}  d6 {[%clk 0:02:55]} 3. e4 {[%clk 0:02:48]}  Bg4 {[%clk 0:02:52]} 4. Be2 {[%clk 0:02:44]}  Nf6 {[%clk 0:02:32]} 5. d5 {[%clk 0:02:36]}  Nb8 {[%clk 0:02:27]} 6. h3 {[%clk 0:02:26]}  Bd7 {[%clk 0:02:27]} 7. c4 {[%clk 0:02:22]}  g6 {[%clk 0:02:26]} 8. Nc3 {[%clk 0:02:22]}  Bg7 {[%clk 0:02:26]} 9. O-O {[%clk 0:02:22]}  O-O {[%clk 0:02:26]} 10. Bf4 {[%clk 0:02:21]}  Na6 {[%clk 0:02:26]} 11. Re1 {[%clk 0:02:16]}  e5 {[%clk 0:02:23]} 12. Be3 {[%clk 0:02:14]}  Nc5 {[%clk 0:02:22]} 13. Nxe5 {[%clk 0:02:11]}  Nfxe4 {[%clk 0:02:16]} 14. Nxd7 {[%clk 0:02:09]}  Qxd7 {[%clk 0:02:15]} 15. Nxe4 {[%clk 0:02:07]}  Nxe4 {[%clk 0:02:15]} 16. Qc2 {[%clk 0:02:03]}  Rae8 {[%clk 0:02:13]} 17. Rac1 {[%clk 0:01:55]}  a5 {[%clk 0:02:11]} 18. b3 {[%clk 0:01:51]}  Nc5 {[%clk 0:02:10]} 19. a3 {[%clk 0:01:48]}  Rxe3 {[%clk 0:01:55]} 20. fxe3 {[%clk 0:01:48]}  Qe7 {[%clk 0:01:56]} 21. Bf3 {[%clk 0:01:43]}  Be5 {[%clk 0:01:54]} 22. b4 {[%clk 0:01:40]}  axb4 {[%clk 0:01:54]} 23. axb4 {[%clk 0:01:40]}  Nd7 {[%clk 0:01:55]} 24. Qf2 {[%clk 0:01:31]}  Qg5 {[%clk 0:01:53]} 25. h4 {[%clk 0:01:29]}  Qe7 {[%clk 0:01:47]} 26. Re2 {[%clk 0:01:17]}  h6 {[%clk 0:01:45]} 27. Ra2 {[%clk 0:01:15]}  Kg7 {[%clk 0:01:32]} 28. Ra7 {[%clk 0:01:14]}  Rb8 {[%clk 0:01:32]} 29. Rc2 {[%clk 0:00:55]}  Nf6 {[%clk 0:01:27]} 30. Rca2 {[%clk 0:00:53]}  Bc3 {[%clk 0:01:24]} 31. b5 {[%clk 0:00:46]}  Bb4 {[%clk 0:01:20]} 32. Re2 {[%clk 0:00:33]}  Bc5 {[%clk 0:01:19]} 33. Raa2 {[%clk 0:00:31]}  Re8 {[%clk 0:01:19]} 34. Kf1 {[%clk 0:00:25]}  Qe5 {[%clk 0:01:19]} 35. g3 {[%clk 0:00:17]}  g5 {[%clk 0:01:07]} 36. Qe1 {[%clk 0:00:14]}  Qf5 {[%clk 0:01:03]} 37. Qf2 {[%clk 0:00:10]}  Qd3 {[%clk 0:00:50]} 38. Kg1 {[%clk 0:00:08]}  Rxe3 {[%clk 0:00:48]} 39. Rad2 {[%clk 0:00:05]}  Rxe2 {[%clk 0:00:38]} 40. Qxc5 {[%clk 0:00:03]}  Qb1+ {[%clk 0:00:35]} 41. Rd1 {[%clk 0:00:03]}  Qxd1# {[%clk 0:00:35]} 0-1


[Site "https://www.chess.com"]